fUST/lending_fUST_20250211
["ID","MTS","AMOUNT","RATE_DAILY","PERIOD"]
[352649005,1739217058006,-537.86,0.00011917,2]
[352649007,1739217058015,-3318.52,0.00011917,2]
[352649010,1739217058026,-8633.74,0.00011917,2]
[352649012,1739217058035,-1563.78,0.00011917,2]
[352649014,1739217058045,-500.0,0.00011917,2]
[352649016,1739217058055,-663.02,0.00011917,2]
[352649018,1739217058064,-540.59,0.00011917,2]
[352649020,1739217058074,-500.0,0.00011917,2]
[352649022,1739217058083,-621.62,0.00011917,2]
[352649024,1739217058092,-500.0,0.00011917,2]
[352649026,1739217058102,-1721.85,0.00011917,2]
[352649028,1739217058111,-220.091735,0.00011917,2]
[352649030,1739217058121,-500.0,0.00011917,2]
[352649032,1739217058130,-1093.42,0.00011917,2]
[352649034,1739217058139,-220.091735,0.00011917,2]
[352649036,1739217058148,-500.0,0.00011917,2]
[352649038,1739217058157,-732.73,0.00011917,2]
[352649040,1739217058167,-517.15,0.00011917,2]
[352649042,1739217058176,-500.0,0.00011917,2]
[352649044,1739217058185,-630.78718659,0.00011917,2]
[352649046,1739217058194,-1107.21,0.00011917,2]
[352649048,1739217058204,-212.90108289,0.00011917,2]
[352649050,1739217058213,-3083.07,0.00011917,2]
[352649052,1739217058222,-500.0,0.00011917,2]
[352649054,1739217058231,-500.0,0.00012044,2]
[352649056,1739217058241,-500.0,0.00012044,2]
[352649058,1739217058250,-151.0,0.00012054,2]
[352649060,1739217058260,-500.0,0.00012054,2]
[352649062,1739217058269,-500.0,0.00012054,2]
[352649064,1739217058278,-500.0,0.00012054,2]
[352649066,1739217058287,-500.0,0.00012054,2]
[352649068,1739217058296,-151.0,0.00012054,2]
[352649070,1739217058305,-151.0,0.00012054,2]
[352649072,1739217058314,-735.03,0.00012054,2]
[352649074,1739217058323,-500.0,0.00012054,2]
[352649076,1739217058333,-500.0,0.00012054,2]
[352649078,1739217058343,-500.0,0.00012054,2]
[352649080,1739217058352,-308.194264,0.00012054,2]
[352649082,1739217058363,-308.194264,0.00012054,2]
[352649084,1739217058371,-500.0,0.00012054,2]
[352649086,1739217058381,-500.0,0.00012054,2]
[352649088,1739217058390,-654.8,0.00012054,2]
[352649090,1739217058399,-279.33402486,0.00012054,2]
[352649092,1739217058408,-500.0,0.00012054,2]
[352649094,1739217058417,-661.79,0.00012054,2]
[352649096,1739217058426,-500.0,0.00012054,2]
[352649098,1739217058435,-500.0,0.00012054,2]
[352649100,1739217058445,-500.0,0.00012054,2]
[352649102,1739217058454,-872.2,0.00012054,2]
[352649104,1739217058465,-500.0,0.00012054,2]
[352649106,1739217058474,-500.0,0.00012054,2]
[352649108,1739217058485,-564.08,0.00012054,2]
[352649110,1739217058494,-500.0,0.00012054,2]
[352649112,1739217058503,-500.0,0.00012054,2]
[352649114,1739217058513,-329.52937007,0.00012054,2]
[352649116,1739217058523,-500.0,0.00012054,2]
[352649118,1739217058532,-500.0,0.00012054,2]
[352649120,1739217058545,-746.7,0.00012054,2]
[352649122,1739217058554,-500.0,0.00012054,2]
[352649124,1739217058564,-500.0,0.00012054,2]
[352649126,1739217058574,-500.0,0.00012054,2]
[352649128,1739217058584,-500.0,0.00012054,2]
[352649130,1739217058594,-522.33,0.00012054,2]
[352649132,1739217058603,-500.0,0.00012054,2]
[352649134,1739217058612,-500.0,0.00012054,2]
[352649136,1739217058622,-500.0,0.00012054,2]
[352649138,1739217058632,-500.0,0.00012054,2]
[352649140,1739217058641,-697.04,0.00012054,2]
[352649142,1739217058651,-1338.64,0.00012054,2]
[352649144,1739217058660,-500.0,0.00012054,2]
[352649146,1739217058670,-1444.41,0.00012054,2]
[352649148,1739217058679,-500.0,0.00012054,2]
[352649150,1739217058688,-993.38,0.00012054,2]
[352649152,1739217058697,-500.0,0.00012054,2]
[352649154,1739217058706,-500.0,0.00012054,2]
[352649156,1739217058715,-1923.93,0.00012054,2]
[352649158,1739217058724,-816.51,0.00012054,2]
[352649160,1739217058733,-500.0,0.00012054,2]
[352649162,1739217058742,-500.0,0.00012054,2]
[352649164,1739217058751,-2855.64,0.00012054,2]
[352649166,1739217058761,-852.74,0.00012054,2]
[352649168,1739217058771,-2016.55,0.00012054,2]
[352649170,1739217058780,-3619.33,0.00012054,2]
[352649171,1739217058790,-3892.95,0.00012054,2]
[352649174,1739217058800,-500.0,0.00012054,2]
[352649176,1739217058810,-485.15,0.00012054,2]
[352649178,1739217058819,-500.0,0.00012054,2]
[352649180,1739217058828,-500.0,0.00012054,2]
[352649182,1739217058837,-1133.68,0.00012054,2]
[352649184,1739217058846,-2543.96,0.00012054,2]
[352649186,1739217058856,-1052.65,0.00012054,2]
[352649188,1739217058865,-500.0,0.00012054,2]
[352649190,1739217058874,-512.12,0.00012054,2]
[352649192,1739217058884,-500.0,0.00012054,2]
[352649194,1739217058893,-1803.17,0.00012054,2]
[352649196,1739217058903,-500.0,0.00012054,2]
[352649198,1739217058912,-500.0,0.00012054,2]
[352649200,1739217058921,-860.92,0.00012054,2]
[352649202,1739217058931,-1323.61,0.00012054,2]
[352649204,1739217058941,-11584.87,0.00012054,2]
[352649206,1739217058950,-4800.77,0.00012054,2]
[352649208,1739217058959,-500.0,0.00012054,2]
[352649210,1739217058968,-585.45,0.00012054,2]
[352649212,1739217058978,-500.0,0.00012054,2]
[352649214,1739217058988,-916.7,0.00012054,2]
[352649216,1739217058997,-500.0,0.00012054,2]
[352649218,1739217059007,-29101.39,0.00012054,2]
[352649220,1739217059016,-1273.32,0.00012054,2]
[352649222,1739217059025,-500.0,0.00012054,2]
[352649224,1739217059036,-500.0,0.00012054,2]
[352649226,1739217059045,-1025.97,0.00012054,2]
[352649228,1739217059054,-245.26451731,0.00012054,2]
[352649230,1739217059063,-1916.6,0.00012054,2]
[352649232,1739217059074,-1515.05,0.00012054,2]
[352649234,1739217059083,-500.0,0.00012054,2]
[352649236,1739217059093,-500.0,0.00012054,2]
[352649238,1739217059102,-500.0,0.00012054,2]
[352649240,1739217059111,-500.0,0.00012054,2]
[352649242,1739217059120,-500.0,0.00012054,2]
[352649244,1739217059129,-1019.81,0.00012054,2]
[352649246,1739217059139,-500.0,0.00012054,2]
[352649248,1739217059148,-501.45,0.00012054,2]
[352649250,1739217059157,-500.0,0.00012054,2]
[352649252,1739217059167,-585.48302124,0.00012054,2]
[352649254,1739217059177,-500.0,0.00012054,2]
[352649256,1739217059186,-500.0,0.00012054,2]
[352649258,1739217059196,-14265.64,0.00012054,2]
[352649260,1739217059206,-500.0,0.00012054,2]
[352649262,1739217059215,-501.51,0.00012054,2]
[352649264,1739217059224,-500.0,0.00012054,2]
[352649266,1739217059233,-500.0,0.00012054,2]
[352649268,1739217059242,-500.0,0.00012054,2]
[352649270,1739217059251,-500.0,0.00012054,2]
[352649272,1739217059260,-500.0,0.00012054,2]
[352649274,1739217059270,-621.7,0.00012054,2]
[352649276,1739217059280,-3666.21,0.00012054,2]
[352649278,1739217059291,-500.0,0.00012054,2]
[352649280,1739217059301,-1588.62,0.00012054,2]
[352649283,1739217059312,-778.17,0.00012054,2]
[352649285,1739217059321,-500.0,0.00012054,2]
[352649287,1739217059330,-1513.57,0.00012054,2]
[352649289,1739217059340,-537.86,0.00012054,2]
[352649291,1739217059352,-3318.52,0.00012054,2]
[352649293,1739217059361,-8633.74,0.00012054,2]
[352649295,1739217059371,-1563.78,0.00012054,2]
[352649297,1739217059381,-500.0,0.00012054,2]
[352649299,1739217059390,-663.02,0.00012054,2]
[352649301,1739217059399,-540.59,0.00012054,2]
[352649303,1739217059408,-500.0,0.00012054,2]
[352649305,1739217059417,-500.0,0.00012054,2]
[352649307,1739217059427,-1721.85,0.00012054,2]
[352649309,1739217059436,-500.0,0.00012054,2]
[352649311,1739217059445,-1093.42,0.00012054,2]
[352649313,1739217059454,-500.0,0.00012054,2]
[352649315,1739217059464,-732.73,0.00012054,2]
[352649317,1739217059473,-517.15,0.00012054,2]
[352649319,1739217059482,-500.0,0.00012054,2]
[352649321,1739217059491,-1107.21,0.00012054,2]
[352649323,1739217059501,-3083.07,0.00012054,2]
[352649325,1739217059510,-500.0,0.00012054,2]
[352649327,1739217059520,-500.0,0.00012065,2]
[352649329,1739217059529,-881.59873127,0.00012102,2]
[352649331,1739217059539,-500.0,0.00012179,2]
[352649333,1739217059552,-501.12441615,0.00012179,2]
[352649334,1739217059562,-151.0,0.00012191,2]
[352649335,1739217059571,-214.294755,0.00012191,2]
[352649336,1739217059580,-151.0,0.00012191,2]
[352649337,1739217059590,-151.0,0.00012191,2]
[352649338,1739217059599,-151.0,0.00012191,2]
[352649339,1739217059608,-500.0,0.00012191,2]
[352649340,1739217059617,-151.0,0.00012191,2]
[352649341,1739217059627,-151.0,0.00012191,2]
[352649342,1739217059636,-500.0,0.00012191,2]
[352649343,1739217059645,-357.07109748,0.00012191,2]
[352649344,1739217059654,-500.0,0.00012191,2]
[352649345,1739217059663,-151.0,0.00012191,2]
[352649346,1739217059672,-151.0,0.00012191,2]
[352649347,1739217059681,-151.0,0.00012191,2]
[352649349,1739217059690,-151.0,0.00012191,2]
[352649351,1739217059700,-1795.214927,0.00012191,2]
[352649353,1739217059709,-1795.214927,0.00012191,2]
[352649355,1739217059718,-735.03,0.00012191,2]
[352649357,1739217059727,-500.0,0.00012191,2]
[352649359,1739217059737,-500.0,0.00012191,2]
[352649361,1739217059746,-500.0,0.00012191,2]
[352649363,1739217059755,-500.0,0.00012191,2]
[352649365,1739217059764,-500.0,0.00012191,2]
[352649366,1739217059773,-654.8,0.00012191,2]
[352649368,1739217059782,-500.0,0.00012191,2]
[352649370,1739217059792,-661.79,0.00012191,2]
[352649372,1739217059801,-500.0,0.00012191,2]
[352649374,1739217059810,-500.0,0.00012191,2]
[352649376,1739217059819,-872.2,0.00012191,2]
[352649378,1739217059829,-500.0,0.00012191,2]
[352649380,1739217059838,-564.08,0.00012191,2]
[352649382,1739217059847,-500.0,0.00012191,2]
[352649384,1739217059857,-500.0,0.00012191,2]
[352649387,1739217059867,-500.0,0.00012191,2]
[352649388,1739217059877,-500.0,0.00012191,2]
[352649390,1739217059887,-151.0,0.00012191,2]
[352649392,1739217059896,-746.7,0.00012191,2]
[352649394,1739217059906,-189.602602,0.00012191,2]
[352649396,1739217059915,-151.0,0.00012191,2]
[352649398,1739217059925,-500.0,0.00012191,2]
[352649401,1739217059935,-500.0,0.00012191,2]
[352649403,1739217059946,-500.0,0.00012191,2]
[352649405,1739217059956,-522.33,0.00012191,2]
[352649407,1739217059966,-500.0,0.00012191,2]
[352649409,1739217059975,-500.0,0.00012191,2]
[352649411,1739217059985,-500.0,0.00012191,2]
[352649413,1739217059995,-697.04,0.00012191,2]
[352649415,1739217060004,-503.826543,0.00012191,2]
[352649417,1739217060014,-503.826543,0.00012191,2]
[352649419,1739217060024,-1338.64,0.00012191,2]
[352649421,1739217060034,-500.0,0.00012191,2]
[352649423,1739217060044,-151.0,0.00012191,2]
[352649425,1739217060054,-151.0,0.00012191,2]
[352649427,1739217060064,-1444.41,0.00012191,2]
[352649429,1739217060074,-228.06381,0.00012191,2]
[352649431,1739217060084,-228.06381,0.00012191,2]
[352649433,1739217060094,-500.0,0.00012191,2]
[352649435,1739217060104,-993.38,0.00012191,2]
[352649437,1739217060114,-510.76702649,0.00012191,2]
[352649439,1739217060123,-151.0,0.00012191,2]
[352649441,1739217060133,-151.0,0.00012191,2]
[352649443,1739217060143,-151.0,0.00012191,2]
[352649445,1739217060152,-500.0,0.00012191,2]
[352649447,1739217060162,-1923.93,0.00012191,2]
[352649449,1739217060172,-816.51,0.00012191,2]
[352649451,1739217060182,-500.0,0.00012191,2]
[352649453,1739217060193,-2855.64,0.00012191,2]
[352649456,1739217060203,-852.74,0.00012191,2]
[352649467,1739217060305,-2016.55,0.00012191,2]
[352649469,1739217060317,-3619.33,0.00012191,2]
[352649471,1739217060326,-3892.95,0.00012191,2]
[352649474,1739217060336,-500.0,0.00012191,2]
[352649476,1739217060346,-500.0,0.00012191,2]
[352649478,1739217060356,-151.0,0.00012191,2]
[352649480,1739217060366,-1133.68,0.00012191,2]
[352649482,1739217060376,-2543.96,0.00012191,2]
[352649484,1739217060386,-1052.65,0.00012191,2]
[352649486,1739217060395,-500.0,0.00012191,2]
[352649488,1739217060404,-512.12,0.00012191,2]
[352649490,1739217060414,-550.81359861,0.00012191,2]
[352649492,1739217060423,-1803.17,0.00012191,2]
[352649494,1739217060433,-500.0,0.00012191,2]
[352649496,1739217060443,-500.0,0.00012191,2]
[352649498,1739217060452,-860.92,0.00012191,2]
[352649500,1739217060462,-1323.61,0.00012191,2]
[352649502,1739217060471,-11584.87,0.00012191,2]
[352649504,1739217060480,-4800.77,0.00012191,2]
[352649506,1739217060490,-500.0,0.00012191,2]
[352649508,1739217060500,-585.45,0.00012191,2]
[352649510,1739217060511,-500.0,0.00012191,2]
[352649513,1739217060522,-916.7,0.00012191,2]
[352649515,1739217060531,-565.10430354,0.00012191,2]
[352649517,1739217060542,-29101.39,0.00012191,2]
[352649519,1739217060555,-1273.32,0.00012191,2]
[352649521,1739217060564,-151.0,0.00012191,2]
[352649523,1739217060573,-500.0,0.00012191,2]
[352649525,1739217060582,-1025.97,0.00012191,2]
[352649527,1739217060592,-659.0357,0.00012191,2]
[352649529,1739217060601,-164.966345,0.00012191,2]
[352649531,1739217060610,-659.0357,0.00012191,2]
[352649533,1739217060619,-1916.6,0.00012191,2]
[352649535,1739217060630,-164.966345,0.00012191,2]
[352649537,1739217060639,-1515.05,0.00012191,2]
[352649539,1739217060649,-500.0,0.00012191,2]
[352649541,1739217060658,-500.0,0.00012191,2]
[352649543,1739217060667,-500.0,0.00012191,2]
[352649545,1739217060677,-151.0,0.00012191,2]
[352649547,1739217060686,-500.0,0.00012191,2]
[352649549,1739217060695,-1019.81,0.00012191,2]
[352649551,1739217060705,-151.0,0.00012191,2]
[352649553,1739217060715,-500.0,0.00012191,2]
[352649555,1739217060724,-501.45,0.00012191,2]
[352649557,1739217060734,-500.0,0.00012191,2]
[352649559,1739217060743,-500.0,0.00012191,2]
[352649561,1739217060752,-502.84029761,0.00012191,2]
[352649563,1739217060762,-14265.64,0.00012191,2]
[352649565,1739217060772,-500.0,0.00012191,2]
[352649567,1739217060781,-501.51,0.00012191,2]
[352649569,1739217060790,-500.0,0.00012191,2]
[352649571,1739217060799,-500.0,0.00012191,2]
[352649573,1739217060809,-500.0,0.00012191,2]
[352649575,1739217060819,-621.7,0.00012191,2]
[352649577,1739217060828,-500.0,0.00012191,2]
[352649579,1739217060837,-3666.21,0.00012191,2]
[352649581,1739217060847,-500.0,0.00012191,2]
[352649583,1739217060857,-1588.62,0.00012191,2]
[352649585,1739217060866,-778.17,0.00012191,2]
[352649587,1739217060876,-500.0,0.00012191,2]
[352649589,1739217060886,-1513.57,0.00012191,2]
[352649591,1739217060895,-537.86,0.00012191,2]
[352649593,1739217060905,-3318.52,0.00012191,2]
[352649595,1739217060915,-8633.74,0.00012191,2]
[352649597,1739217060926,-1563.78,0.00012191,2]
[352649599,1739217060936,-500.0,0.00012191,2]
[352649601,1739217060945,-663.02,0.00012191,2]
[352649603,1739217060955,-540.59,0.00012191,2]
[352649605,1739217060964,-556.22789134,0.00012191,2]
[352649607,1739217060974,-500.0,0.00012191,2]
[352649609,1739217060983,-1721.85,0.00012191,2]
[352649611,1739217060993,-220.091735,0.00012191,2]
[352649613,1739217061003,-500.0,0.00012191,2]
[352649615,1739217061012,-1093.42,0.00012191,2]
[352649617,1739217061021,-220.091735,0.00012191,2]
[352649619,1739217061031,-500.0,0.00012191,2]
[352649621,1739217061041,-732.73,0.00012191,2]
[352649623,1739217061050,-517.15,0.00012191,2]
[352649625,1739217061060,-500.0,0.00012191,2]
[352649627,1739217061069,-1107.21,0.00012191,2]
[352649629,1739217061079,-3083.07,0.00012191,2]
[352649631,1739217061087,-500.0,0.00012191,2]
[352649633,1739217061096,-867.58099182,0.0001224,2]
[352649635,1739217061106,-587.0,0.00012286,2]
[352649637,1739217061115,-1000.0,0.00012318,2]
[352649640,1739217061126,-151.0,0.00012328,2]
[352649642,1739217061135,-151.0,0.00012328,2]
[352649644,1739217061144,-151.0,0.00012328,2]
[352649646,1739217061153,-500.0,0.00012328,2]
[352649648,1739217061163,-500.0,0.00012328,2]
[352649650,1739217061172,-350.98,0.00012328,2]
[352649652,1739217061181,-151.0,0.00012328,2]
[352649654,1739217061191,-151.0,0.00012328,2]
[352649656,1739217061201,-735.03,0.00012328,2]
[352649658,1739217061211,-500.0,0.00012328,2]
[352649660,1739217061220,-500.0,0.00012328,2]
[352649662,1739217061229,-500.0,0.00012328,2]
[352649664,1739217061238,-308.194264,0.00012328,2]
[352649666,1739217061248,-308.194264,0.00012328,2]
[352649668,1739217061257,-500.0,0.00012328,2]
[352649670,1739217061267,-399.696085,0.00012328,2]
[352649672,1739217061277,-399.696085,0.00012328,2]
[352649674,1739217061286,-500.0,0.00012328,2]
[352649676,1739217061295,-151.0,0.00012328,2]
[352649678,1739217061304,-151.0,0.00012328,2]
[352649680,1739217061313,-654.8,0.00012328,2]
[352649682,1739217061322,-500.0,0.00012328,2]
[352649684,1739217061331,-661.79,0.00012328,2]
[352649686,1739217061340,-227.9909,0.00012328,2]
[352649688,1739217061350,-500.0,0.00012328,2]
[352649690,1739217061360,-500.0,0.00012328,2]
[352649692,1739217061369,-227.9909,0.00012328,2]
[352649694,1739217061379,-872.2,0.00012328,2]
[352649696,1739217061389,-500.0,0.00012328,2]
[352649698,1739217061398,-564.08,0.00012328,2]
[352649700,1739217061407,-500.0,0.00012328,2]
[352649702,1739217061417,-500.0,0.00012328,2]
[352649704,1739217061427,-500.0,0.00012328,2]
[352649706,1739217061436,-500.0,0.00012328,2]
[352649708,1739217061445,-746.7,0.00012328,2]
[352649710,1739217061456,-151.0,0.00012328,2]
[352649712,1739217061466,-224.954777,0.00012328,2]
[352649714,1739217061475,-500.0,0.00012328,2]
[352649716,1739217061484,-500.0,0.00012328,2]
[352649718,1739217061493,-522.33,0.00012328,2]
[352649720,1739217061502,-500.0,0.00012328,2]
[352649722,1739217061512,-288.994636,0.00012328,2]
[352649724,1739217061521,-500.0,0.00012328,2]
[352649726,1739217061530,-500.0,0.00012328,2]
[352649728,1739217061540,-697.04,0.00012328,2]
[352649730,1739217061552,-1338.64,0.00012328,2]
[352649732,1739217061561,-1444.41,0.00012328,2]
[352649734,1739217061570,-500.0,0.00012328,2]
[352649736,1739217061579,-993.38,0.00012328,2]
[352649738,1739217061590,-500.0,0.00012328,2]
[352649740,1739217061600,-1923.93,0.00012328,2]
[352649742,1739217061609,-816.51,0.00012328,2]
[352649744,1739217061619,-500.0,0.00012328,2]
[352649746,1739217061628,-2855.64,0.00012328,2]
[352649748,1739217061638,-852.74,0.00012328,2]
[352649750,1739217061647,-2016.55,0.00012328,2]
[352649752,1739217061656,-3619.33,0.00012328,2]
[352649753,1739217061666,-3892.95,0.00012328,2]
[352649754,1739217061676,-500.0,0.00012328,2]
[352649755,1739217061686,-1133.68,0.00012328,2]
[352649756,1739217061696,-2543.96,0.00012328,2]
[352649757,1739217061706,-1052.65,0.00012328,2]
[352649758,1739217061716,-500.0,0.00012328,2]
[352649759,1739217061726,-512.12,0.00012328,2]
[352649760,1739217061736,-1803.17,0.00012328,2]
[352649761,1739217061746,-500.0,0.00012328,2]
[352649762,1739217061755,-247.80114881,0.00012328,2]
[352649763,1739217061766,-860.92,0.00012328,2]
[352649764,1739217061776,-1323.61,0.00012328,2]
[352649765,1739217061786,-11584.87,0.00012328,2]
[352649767,1739217061796,-4800.77,0.00012328,2]
[352649769,1739217061806,-500.0,0.00012328,2]
[352649771,1739217061816,-585.45,0.00012328,2]
[352649773,1739217061825,-500.0,0.00012328,2]
[352649775,1739217061835,-916.7,0.00012328,2]
[352649777,1739217061844,-29101.39,0.00012328,2]
[352649779,1739217061854,-1273.32,0.00012328,2]
[352649781,1739217061863,-500.0,0.00012328,2]
[352649783,1739217061873,-1025.97,0.00012328,2]
[352649785,1739217061882,-1916.6,0.00012328,2]
[352649787,1739217061892,-1515.05,0.00012328,2]
[352649789,1739217061902,-500.0,0.00012328,2]
[352649791,1739217061912,-500.0,0.00012328,2]
[352649793,1739217061921,-500.0,0.00012328,2]
[352649795,1739217061930,-500.0,0.00012328,2]
[352649797,1739217061940,-1019.81,0.00012328,2]
[352649799,1739217061949,-500.0,0.00012328,2]
[352649801,1739217061959,-501.45,0.00012328,2]
[352649803,1739217061968,-500.0,0.00012328,2]
[352649805,1739217061978,-500.0,0.00012328,2]
[352649807,1739217061988,-14265.64,0.00012328,2]
[352649809,1739217061998,-500.0,0.00012328,2]
[352649811,1739217062008,-501.51,0.00012328,2]
[352649813,1739217062018,-500.0,0.00012328,2]
[352649815,1739217062027,-500.0,0.00012328,2]
[352649817,1739217062037,-500.0,0.00012328,2]
[352649820,1739217062047,-621.7,0.00012328,2]
[352649822,1739217062057,-500.0,0.00012328,2]
[352649824,1739217062067,-3666.21,0.00012328,2]
[352649826,1739217062077,-494.19,0.00012328,2]
[352649828,1739217062086,-1588.62,0.00012328,2]
[352649830,1739217062096,-778.17,0.00012328,2]
[352649832,1739217062106,-500.0,0.00012328,2]
[352649834,1739217062115,-1513.57,0.00012328,2]
[352649836,1739217062125,-537.86,0.00012328,2]
[352649838,1739217062135,-3318.52,0.00012328,2]
[352649840,1739217062144,-8633.74,0.00012328,2]
[352649842,1739217062153,-1563.78,0.00012328,2]
[352649844,1739217062163,-500.0,0.00012328,2]
[352649846,1739217062173,-663.02,0.00012328,2]
[352649848,1739217062183,-540.59,0.00012328,2]
[352649850,1739217062193,-347.32590083,0.00012328,2]
[352649852,1739217062203,-1721.85,0.00012328,2]
[352649854,1739217062212,-500.0,0.00012328,2]
[352649856,1739217062222,-1093.42,0.00012328,2]
[352649858,1739217062232,-500.0,0.00012328,2]
[352649860,1739217062242,-732.73,0.00012328,2]
[352649862,1739217062251,-517.15,0.00012328,2]
[352649864,1739217062261,-500.0,0.00012328,2]
[352649866,1739217062271,-1107.21,0.00012328,2]
[352649868,1739217062280,-3083.07,0.00012328,2]
[352649870,1739217062290,-500.0,0.00012328,2]
[352649872,1739217062300,-151.0,0.00012465,2]
[352649874,1739217062311,-151.0,0.00012465,2]
[352649876,1739217062320,-151.0,0.00012465,2]
[352649878,1739217062329,-500.0,0.00012465,2]
[352649880,1739217062338,-151.0,0.00012465,2]
[352649882,1739217062348,-500.0,0.00012465,2]
[352649884,1739217062358,-151.0,0.00012465,2]
[352649886,1739217062368,-241.689482,0.00012465,2]
[352649888,1739217062377,-1795.214927,0.00012465,2]
[352649890,1739217062386,-1795.214927,0.00012465,2]
[352649892,1739217062396,-735.03,0.00012465,2]
[352649894,1739217062405,-500.0,0.00012465,2]
[352649896,1739217062415,-500.0,0.00012465,2]
[352649898,1739217062424,-500.0,0.00012465,2]
[352649900,1739217062434,-500.0,0.00012465,2]
[352649902,1739217062443,-500.0,0.00012465,2]
[352649904,1739217062453,-654.8,0.00012465,2]
[352649906,1739217062462,-500.0,0.00012465,2]
[352649908,1739217062472,-661.79,0.00012465,2]
[352649910,1739217062482,-500.0,0.00012465,2]
[352649912,1739217062491,-500.0,0.00012465,2]
[352649914,1739217062500,-872.2,0.00012465,2]
[352649916,1739217062510,-500.0,0.00012465,2]
[352649927,1739217062608,-564.08,0.00012465,2]
[352649929,1739217062619,-500.0,0.00012465,2]
[352649931,1739217062629,-500.0,0.00012465,2]
[352649933,1739217062642,-500.0,0.00012465,2]
[352649935,1739217062652,-746.7,0.00012465,2]
[352649937,1739217062661,-500.0,0.00012465,2]
[352649939,1739217062670,-500.0,0.00012465,2]
[352649941,1739217062680,-522.33,0.00012465,2]
[352649943,1739217062689,-375.71935706,0.00012465,2]
[352649945,1739217062699,-500.0,0.00012465,2]
[352649947,1739217062708,-697.04,0.00012465,2]
[352649949,1739217062718,-1338.64,0.00012465,2]
[352649951,1739217062727,-151.0,0.00012465,2]
[352649953,1739217062737,-151.0,0.00012465,2]
[352649955,1739217062746,-1444.41,0.00012465,2]
[352649957,1739217062756,-228.06381,0.00012465,2]
[352649959,1739217062767,-228.06381,0.00012465,2]
[352649961,1739217062775,-993.38,0.00012465,2]
[352649963,1739217062785,-151.0,0.00012465,2]
[352649965,1739217062794,-151.0,0.00012465,2]
[352649967,1739217062804,-151.0,0.00012465,2]
[352649969,1739217062813,-500.0,0.00012465,2]
[352649971,1739217062823,-1923.93,0.00012465,2]
[352649973,1739217062832,-816.51,0.00012465,2]
[352649975,1739217062842,-500.0,0.00012465,2]
[352649977,1739217062852,-2855.64,0.00012465,2]
[352649979,1739217062862,-852.74,0.00012465,2]
[352649981,1739217062872,-2016.55,0.00012465,2]
[352649983,1739217062882,-3619.33,0.00012465,2]
[352649985,1739217062891,-3892.95,0.00012465,2]
[352649987,1739217062901,-500.0,0.00012465,2]
[352649989,1739217062911,-151.0,0.00012465,2]
[352649991,1739217062923,-1133.68,0.00012465,2]
[352649993,1739217062933,-2543.96,0.00012465,2]
[352649995,1739217062943,-1052.65,0.00012465,2]
[352649997,1739217062953,-500.0,0.00012465,2]
[352649999,1739217062963,-512.12,0.00012465,2]
[352650001,1739217062973,-1803.17,0.00012465,2]